bitfinex/quotes_ETHUSD_20220218
["timestamp","ask_amount","ask_price","bid_price","bid_amount"]
[1645200905299,0.63656855,2801.4,2799.6,0.70081443]
[1645200905503,0.63656855,2801.4,2799.4,1.29331]
[1645200905504,5.0,2800.6,2799.4,0.4]
[1645200905799,1.0,2800.5,2799.4,0.38272422]
[1645200905999,1.78756,2800.3,2799.4,0.38272422]
[1645200906199,0.65084247,2800.0,2799.6,0.0008]
[1645200906399,1.74953196,2800.0,2799.6,0.0008]
[1645200906599,1.74953196,2800.0,2799.4,0.33352422]
[1645200906801,1.09868949,2800.0,2799.4,0.33352422]
[1645200907102,1.09868949,2800.0,2799.5,0.1784]
[1645200907304,0.00210024,2800.5,2799.5,0.1784]
[1645200907501,0.00210024,2800.5,2799.6,20.8]
[1645200907709,0.00210024,2800.5,2799.7,0.1784]
[1645200907902,0.00210024,2800.5,2799.6,0.3]
[1645200908103,0.00210024,2800.5,2799.7,0.1784]
[1645200908544,0.00210042,2800.5,2799.7,0.417]
[1645200908749,0.00210042,2800.5,2799.8,20.8]
[1645200909145,0.00210042,2800.5,2800.2,1.50906892]
[1645200909545,0.00206529,2800.5,2800.2,1.50906892]
[1645200909748,0.00206529,2800.5,2800.2,1.80906892]
[1645200909951,0.53285596,2802.4,2800.3,6.5]
[1645200910158,12.22119589,2803.1,2800.4,6.85695]
[1645200910352,9.48144163,2803.2,2801.7,5.0]
[1645200910353,0.54798163,2803.2,2801.7,5.0]
[1645200910546,0.54798163,2803.2,2802.3,5.215]
[1645200910547,0.89279,2803.0,2802.3,5.215]
[1645200910746,3.14200227,2803.9,2802.7,5.215]
[1645200910747,0.2682439,2803.3,2802.7,5.215]
[1645200910954,1.34e-05,2803.9,2803.1,5.0]
[1645200911148,1.34e-05,2803.9,2803.8,5.215]
[1645200911351,0.8588,2805.4,2803.9,6.5]
[1645200911546,0.8588,2805.4,2804.0,0.5952]
[1645200911755,10.63803091,2806.5,2804.0,0.717]
[1645200911756,7.5113,2806.5,2804.0,0.717]
[1645200911952,0.01196103,2807.1,2805.5,5.215]
[1645200912205,0.01196103,2807.1,2804.1,0.1782]
[1645200912206,1.74772773,2805.3,2805.2,5.215]
[1645200912400,0.6981407,2806.6,2805.2,0.417]
[1645200912401,1.18867551,2806.6,2805.2,0.417]
[1645200913102,0.00224649,2805.4,2805.2,0.417]
[1645200913302,0.50729569,2805.4,2805.2,0.417]
[1645200913501,0.50666206,2805.4,2805.2,0.417]
[1645200913900,0.50666206,2805.4,2804.5,1.7838056]
[1645200914101,0.50441557,2805.4,2804.6,0.417]
[1645200914302,0.69622612,2805.5,2804.6,0.417]
[1645200914503,0.69622612,2805.5,2805.0,1.50906892]
[1645200914701,0.50465426,2806.1,2804.0,0.8922514]
[1645200914903,0.3,2805.5,2804.0,1.3092514]
[1645200915113,0.50465426,2806.1,2804.1,3.5]
[1645200915114,5.0,2805.3,2804.1,3.5]
[1645200915302,5.0,2805.9,2803.9,3.5]
[1645200915505,5.3,2805.3,2803.9,0.417]
[1645200915701,0.51138885,2804.3,2803.9,0.417]
[1645200915985,0.51138885,2804.3,2803.3,0.417]
[1645200915986,0.50466128,2804.3,2803.3,0.417]
[1645200916190,1.50440152,2805.1,2803.4,1.7848058]
[1645200916378,1.0,2804.8,2803.4,1.7848058]
[1645200916877,5.0,2806.0,2803.4,1.7848058]
[1645200916878,14.7658,2806.1,2804.4,0.8921566]
[1645200917077,14.7658,2806.1,2804.7,0.05]
[1645200917078,4.95,2806.1,2804.7,0.05]
[1645200917281,4.95,2806.9,2805.4,0.05]
[1645200917478,0.0566282,2807.3,2805.0,0.05]
[1645200917677,0.62505997,2806.5,2805.5,1.78312]
[1645200917877,0.62505997,2806.5,2805.7,0.8917104]
[1645200918080,0.0566282,2807.3,2806.0,1.7830818]
[1645200918278,0.0566282,2807.3,2806.0,2.0545818]
[1645200918481,0.0566282,2807.3,2806.5,0.05]
[1645200918482,8.86e-05,2806.6,2806.5,0.05]
[1645200918679,0.0566282,2807.3,2806.6,6.5]
[1645200918883,2.82e-05,2807.3,2807.1,0.89105]
[1645200919078,0.05,2808.1,2807.6,0.51308954]
[1645200919279,0.05,2808.1,2808.0,0.05]
[1645200919481,0.0001,2808.1,2808.0,0.05]
[1645200919715,31.54043298,2810.1,2808.0,0.417]
[1645200919716,4.95,2810.0,2808.0,0.417]
[1645200919907,31.50474638,2810.1,2808.0,0.417]
[1645200920103,0.5121,2810.2,2808.0,0.417]
[1645200920304,0.00212506,2808.2,2808.1,3.5]
[1645200920507,0.0431849,2810.3,2808.6,4.5]
[1645200920716,0.0431849,2810.3,2808.6,3.5]
[1645200921005,0.0431849,2810.3,2808.6,0.1779]
[1645200921006,4.9931849,2810.3,2808.6,0.1779]
[1645200921205,4.9931849,2810.3,2808.1,0.417]
[1645200921206,4.45,2809.5,2808.1,0.417]
[1645200921408,4.45,2809.5,2807.1,0.417]
[1645200921409,2.41,2808.8,2807.1,0.417]
[1645200921606,2.46,2808.0,2806.3,0.178]
[1645200921808,0.25,2807.5,2806.3,0.178]
[1645200922014,1.0,2806.4,2806.3,0.178]
[1645200922204,1.417,2806.4,2806.3,0.178]
[1645200922402,1.417,2806.4,2805.8,0.2055]
[1645200922403,1.417,2806.4,2806.0,2.7181]
[1645200922603,5.215,2808.1,2806.0,2.7181]
[1645200922604,0.1781,2808.2,2806.1,6.5]
[1645200922805,2.6746,2809.1,2806.2,0.1781]
[1645200922806,0.25,2808.1,2806.2,0.1781]
[1645200923008,0.25,2808.1,2807.3,2.54]
[1645200923208,2.9537,2809.9,2806.7,0.53366]
[1645200923209,0.69309645,2809.1,2806.7,0.53366]
[1645200923460,2.46,2808.4,2806.7,0.1779]
[1645200923659,2.46,2808.4,2806.1,0.1779]
[1645200923660,0.1779,2808.3,2806.1,0.1779]
[1645200923860,0.25,2808.0,2806.1,0.1779]
[1645200924059,0.25,2808.0,2806.9,2.54]
[1645200924259,0.25,2808.0,2807.3,2.54]
[1645200924460,0.25,2808.0,2806.9,2.54]
[1645200924658,0.25,2808.0,2806.7,0.60101916]
[1645200924659,0.25,2808.0,2807.0,0.1779]
[1645200924859,0.25,2808.0,2806.9,0.6]
[1645200925059,0.25211605,2808.7,2807.9,2.54]
[1645200925262,0.25211605,2808.7,2808.6,2.54]
[1645200925263,0.00211605,2808.7,2808.6,2.54]
[1645200925460,0.00211605,2808.7,2808.1,0.50990007]
[1645200925461,0.00225138,2808.7,2808.2,0.1779]
[1645200925861,0.00225138,2808.7,2808.3,0.3]
[1645200926061,0.00225138,2808.7,2808.2,1.12963346]
[1645200926259,0.00225138,2808.7,2807.0,0.5949]
[1645200926463,0.00225138,2808.7,2807.0,0.1779]
[1645200926464,0.59237307,2808.3,2807.0,0.1779]
[1645200926760,0.59237307,2808.3,2806.5,1.12963346]
[1645200926761,0.25,2808.0,2806.5,1.12963346]
[1645200926960,0.25,2808.0,2806.3,0.20026011]
[1645200926961,0.00602183,2807.9,2806.3,0.20582956]
[1645200927202,0.18412183,2807.9,2807.2,1.12963346]
[1645200927397,2.02184964,2808.3,2807.2,1.12963346]
[1645200927398,0.18392183,2808.2,2807.2,1.12963346]
[1645200927601,0.18392183,2808.2,2806.8,1.12963346]
[1645200927799,0.2005,2808.0,2806.8,1.12963346]
[1645200928001,0.18412183,2807.9,2806.3,0.02792956]
[1645200928202,3.87036654,2807.7,2806.3,0.20046011]
[1645200928404,1.0,2807.4,2806.3,0.02236011]
[1645200928703,0.81456545,2807.2,2806.3,0.02236011]
[1645200928899,0.5951,2807.1,2806.3,0.02236011]
[1645200929100,2.03057233,2807.1,2806.3,0.02236011]
[1645200929501,1.43547233,2807.1,2806.3,0.02236011]
[1645200930501,1.43547233,2807.1,2806.3,0.65365631]
[1645200930864,1.42934987,2807.1,2807.0,1.42963346]
[1645200931061,3.6781,2808.3,2807.0,1.42352291]
[1645200931062,0.00602183,2808.2,2807.0,1.42352291]
[1645200931257,1.60751229,2808.3,2807.1,0.1779]
[1645200931258,0.2005,2808.1,2807.1,0.1779]
[1645200931657,0.00602183,2808.0,2806.9,21.92963346]
[1645200931856,0.00602183,2808.0,2807.0,20.8]
[1645200932055,0.00602183,2808.0,2807.6,21.92963346]
[1645200932256,0.00602183,2808.0,2807.3,0.01522079]
[1645200932257,0.2005,2808.1,2807.3,0.01522079]
[1645200932858,0.1779,2808.0,2807.3,0.01522079]
[1645200933058,0.65115148,2807.9,2807.3,0.01522079]
[1645200933258,0.18392183,2808.0,2807.3,0.01522079]
[1645200933459,0.2005,2808.1,2807.3,0.01522079]
[1645200933460,0.2005,2808.1,2807.7,1.12963346]
[1645200933663,0.7441766,2808.3,2807.7,1.42963346]
[1645200934158,0.00602183,2808.5,2807.7,1.42963346]
[1645200934159,0.00287696,2808.7,2807.8,0.3]
[1645200934358,0.79520172,2808.6,2807.8,0.3]
[1645200934605,0.61730172,2808.6,2807.5,1.12963346]
[1645200934802,0.61730172,2808.6,2807.3,0.01522079]
[1645200934803,0.00602183,2808.5,2808.1,1.12963346]
[1645200935005,0.92479791,2808.7,2807.3,0.31522079]
[1645200935006,0.00602183,2808.6,2807.3,0.31522079]
[1645200935199,0.00602183,2808.6,2807.9,1.42963346]
[1645200935200,0.18392183,2808.6,2807.9,1.42963346]
[1645200935399,0.75292019,2808.7,2807.9,1.42963346]
[1645200935602,0.75292019,2808.7,2807.9,1.72963346]
[1645200935801,0.75292019,2808.7,2807.9,1.42963346]
[1645200936005,0.1779,2808.6,2807.9,1.42963346]
[1645200937905,0.93083561,2808.7,2807.9,1.72963346]
[1645200938356,0.93083561,2808.7,2808.0,20.8]
[1645200938558,0.93083561,2808.7,2807.9,0.6]
[1645200938559,0.75293561,2808.7,2807.9,0.6]
[1645200938757,0.93130215,2809.4,2808.6,22.22963346]
[1645200938953,0.00831084,2809.4,2808.6,22.22963346]
[1645200939160,0.00831084,2809.4,2808.6,21.4]
[1645200939454,0.00831084,2809.4,2808.6,21.1]
[1645200939854,0.00831084,2809.4,2808.6,21.4]
[1645200940052,0.2005,2809.6,2808.6,21.4]
[1645200940257,0.2005,2809.6,2809.2,21.92963346]
[1645200940457,0.2005,2809.6,2809.0,0.3]
[1645200940664,0.2005,2809.6,2808.2,0.1779]
[1645200940857,0.1779,2809.5,2808.0,0.04121839]
[1645200941063,0.1779,2809.5,2807.9,1.42963346]
[1645200941064,3.87036654,2809.2,2807.9,1.42963346]
[1645200941260,0.1779,2809.1,2807.9,1.42963346]
[1645200941455,0.1779,2809.1,2808.1,0.06745739]
[1645200941456,0.74312087,2808.9,2808.1,0.06745739]
[1645200941655,0.2005,2808.9,2808.1,0.06745739]
[1645200941858,0.1779,2808.8,2808.1,0.06745739]
[1645200942295,6.0,2808.7,2807.9,0.2895597]
[1645200942499,0.1779,2808.6,2807.9,0.2895597]
[1645200942696,0.53293024,2808.0,2807.9,0.2895597]
[1645200942996,1.0,2808.4,2807.9,0.2895597]
[1645200943196,0.1779,2808.3,2807.9,0.2895597]
[1645200943397,1.12194374,2808.3,2807.9,0.2895597]
[1645200943596,1.12194374,2808.3,2806.5,3.6779]
[1645200943597,6.5,2808.2,2806.7,1.12963346]
[1645200943803,1.0,2808.0,2806.7,1.12963346]
[1645200943997,0.1781,2807.9,2806.7,1.12963346]
[1645200944202,0.2005,2807.6,2806.7,1.12963346]
[1645200944402,0.1781,2807.5,2806.3,20.8]
[1645200944602,0.69270405,2807.2,2806.3,20.8]
[1645200944799,0.2005,2807.1,2806.3,20.8]
[1645200945000,0.2005,2807.1,2806.4,21.92963346]
[1645200945602,0.2005,2807.1,2806.2,20.8]
[1645200946050,0.2005,2807.1,2805.6,0.9031385]
[1645200946354,0.2005,2807.1,2806.7,1.12963346]
[1645200946551,0.2005,2807.1,2806.4,20.8]
[1645200946951,0.2005,2807.1,2807.0,1.12963346]
[1645200947256,0.00304944,2808.8,2807.0,21.92963346]
[1645200947453,0.00304944,2808.8,2807.8,1.12963346]
[1645200947754,0.00304944,2808.8,2807.4,20.8]
[1645200947755,1.25635234,2808.8,2807.4,20.8]
[1645200947953,1.25635234,2808.8,2807.2,0.3]
[1645200947954,0.1779,2808.7,2807.2,0.3]
[1645200948354,4.04826654,2808.7,2807.2,0.3]
[1645200948554,0.66876404,2808.0,2807.2,0.3]
[1645200948955,0.1779,2808.5,2807.2,0.3]
[1645200949152,0.5949,2808.5,2807.2,0.3]
[1645200949601,1.78241,2808.4,2807.2,0.3]
[1645200949797,1.78241,2808.4,2806.8,1.32543346]
[1645200949798,1.5949,2808.3,2806.8,1.32543346]
[1645200949999,0.66531935,2807.4,2806.8,1.32543346]
[1645200950198,1.25396346,2807.4,2806.8,1.32543346]
[1645200950399,0.81055654,2806.4,2806.2,1.78265]
[1645200950599,0.81055654,2806.4,2806.1,20.8]
[1645200951399,0.81055654,2806.4,2806.1,20.7]
[1645200951608,1.11055654,2806.4,2805.6,0.13738537]
[1645200951801,1.7834,2806.3,2805.0,0.1781]
[1645200952102,0.3,2806.2,2805.0,0.1781]
[1645200952307,1.55191361,2806.2,2804.7,0.1782]
[1645200952509,1.55191361,2806.2,2804.7,4.16617]
[1645200952510,5.11870361,2806.2,2804.7,4.16617]
[1645200952702,5.11870361,2806.2,2805.5,1.78299]
[1645200953099,5.11870361,2806.2,2804.9,0.1781]
[1645200953358,0.57435071,2806.1,2804.9,0.1781]
[1645200953550,0.57435071,2806.1,2804.7,2.85299]
[1645200953852,0.57435071,2806.1,2804.9,20.8]
[1645200953853,0.1782,2806.0,2804.9,20.8]
[1645200954052,5.11870361,2806.2,2805.2,20.8]
[1645200954256,5.11870361,2806.2,2805.1,1.78322]
[1645200954453,3.11870361,2806.2,2804.7,1.08317]
[1645200954652,3.11870361,2806.2,2804.7,1.09568409]
[1645200954853,3.11870361,2806.2,2804.8,20.8]
[1645200955052,0.6824682,2806.1,2804.8,20.8]
[1645200955252,0.6824682,2806.1,2805.0,20.8]
[1645200955451,0.6824682,2806.1,2804.7,0.91748409]
[1645200955452,0.6824682,2806.1,2805.2,1.78309]
[1645200955853,0.6824682,2806.1,2805.2,20.8]
[1645200956051,0.6824682,2806.1,2805.2,20.75]
[1645200956352,0.9824682,2806.1,2805.0,0.02160157]
[1645200956552,0.8918,2806.0,2805.0,0.02160157]
[1645200956751,0.1782,2805.9,2805.0,0.02160157]
[1645200957196,0.1782,2806.0,2805.2,20.8]
[1645200957598,0.89175,2806.1,2805.2,20.8]
[1645200957796,0.89175,2806.1,2805.2,21.1]
[1645200958596,0.89175,2806.1,2805.2,20.8]
[1645200959096,0.3,2806.0,2805.2,20.8]
[1645200959603,0.4782,2806.1,2805.2,20.8]
[1645200959798,3.11870361,2806.2,2805.2,20.8]
[1645200960198,3.11870361,2806.2,2805.3,20.8]
[1645200960396,3.11870361,2806.2,2805.2,20.8]
[1645200960397,0.89173,2806.1,2805.2,20.8]
[1645200960860,0.89173,2806.1,2805.3,20.8]
[1645200961250,0.91555367,2806.1,2805.3,20.8]
[1645200961749,0.91555367,2806.1,2805.2,0.89165]
[1645200961750,0.3,2806.0,2805.2,0.89165]
[1645200961947,0.3,2806.0,2805.1,20.8]
[1645200962349,0.3,2806.0,2805.4,21.69157]
[1645200962547,0.91555367,2806.1,2805.4,20.8]
[1645200962748,0.02382367,2806.1,2805.4,20.8]
[1645200962948,0.02382367,2806.1,2805.3,0.417]
[1645200963149,0.02382367,2806.1,2804.9,0.5952]
[1645200963349,0.02382367,2806.1,2804.7,0.53396]
[1645200963547,0.02382367,2806.1,2804.8,1.93195601]
[1645200963752,0.02382367,2806.1,2804.9,2.04891601]
[1645200963951,0.02382367,2806.1,2805.2,20.8]
[1645200964149,0.02382367,2806.1,2805.3,21.217]
[1645200964350,0.02382367,2806.1,2805.3,20.8]
[1645200964800,0.91557367,2806.1,2805.3,20.8]
[1645200964997,0.32382367,2806.1,2804.8,20.8]
[1645200965199,3.82382367,2806.1,2805.1,20.8]
[1645200965401,0.91555367,2806.1,2805.1,20.8]
[1645200965600,0.91555367,2806.1,2805.2,20.8]
[1645200965601,0.02382367,2806.1,2805.2,20.8]
[1645200966004,1.03462415,2806.1,2805.2,20.8]
[1645200966800,1.03462415,2806.1,2805.7,0.8915]
[1645200967001,1.03462415,2806.1,2805.8,20.8]
[1645200967199,0.02382367,2806.1,2805.8,20.8]
[1645200967402,0.32382367,2806.1,2805.8,20.8]
[1645200967601,0.02382367,2806.1,2805.8,20.8]
[1645200967802,0.02382367,2806.1,2804.8,0.417]
[1645200968201,0.02382367,2806.1,2805.5,1.78294]
[1645200968463,0.02382367,2806.1,2805.6,0.89137]
[1645200968761,0.02382367,2806.1,2805.7,20.8]
[1645200968957,0.02382367,2806.1,2805.8,21.69146]
[1645200969157,0.02382367,2806.1,2805.9,20.8]
[1645200969357,1.4287227,2806.6,2805.7,1.78277]
[1645200969559,1.4287227,2806.6,2805.7,0.5]
[1645200969759,3.2119653,2806.6,2805.7,20.8]
[1645200969962,3.2119653,2806.6,2805.1,0.417]
[1645200970160,1.78341,2806.4,2805.1,0.417]
[1645200970361,6.7119653,2806.6,2805.1,1.60869]
[1645200970362,15.8072653,2806.6,2805.1,1.60869]
[1645200970561,15.8072653,2806.6,2805.1,0.417]
[1645200970762,0.65380287,2805.8,2805.3,20.8]
[1645200970963,0.65380287,2805.8,2805.3,15.4492]
[1645200971463,1.36993,2806.1,2805.3,15.4492]
[1645200971660,0.4782,2806.1,2805.3,15.4492]
[1645200971863,0.4782,2806.1,2805.5,0.0008]
[1645200972101,1.36997,2806.1,2805.5,0.0008]
[1645200972611,3.56681,2806.4,2805.7,6.5]
[1645200972612,0.29587345,2806.4,2805.7,6.5]
[1645200972809,2.67487,2807.2,2805.7,6.5]
[1645200972810,0.00207492,2808.8,2805.8,10.0]
[1645200973007,0.00207492,2808.8,2807.0,5.0]
[1645200973202,0.00207492,2808.8,2807.3,5.0]
[1645200973403,0.00207492,2808.8,2808.0,5.215]
[1645200973713,7.492e-05,2808.8,2808.2,20.4492]
[1645200973902,7.492e-05,2808.8,2808.6,15.4492]
[1645200974102,0.00829779,2809.5,2808.8,15.4492]
[1645200974306,0.00829779,2809.5,2809.0,15.4492]
[1645200974307,0.00829837,2809.5,2809.0,15.4492]
[1645200974702,0.71400741,2809.4,2807.8,3.56215]
[1645200975002,6.5,2809.3,2807.9,20.8]
[1645200975205,6.5,2809.3,2807.1,0.32844566]
[1645200975402,7.217,2809.3,2807.8,0.5]
[1645200975606,7.517,2809.3,2807.8,0.5]
[1645200975856,9.2988436,2809.3,2807.4,1.78197]
[1645200976054,9.2988436,2809.3,2807.2,3.5]
[1645200976055,8.10792,2809.3,2807.3,1.0]
[1645200976257,8.40792,2809.3,2807.1,0.32844566]
[1645200976455,5.0,2809.2,2807.1,0.32844566]
[1645200976655,8.40792,2809.3,2807.1,0.32844566]
[1645200976656,5.0,2809.0,2807.1,0.32844566]
[1645200976857,20.8,2808.8,2807.1,0.32844566]
[1645200977057,0.58867036,2807.3,2807.1,0.2241]
[1645200977256,0.58867036,2807.3,2805.9,2.89580606]
[1645200977257,20.9092,2807.9,2806.2,0.89151]
[1645200977456,20.9092,2807.9,2806.3,3.5]
[1645200977457,0.5262,2807.9,2806.3,3.5]
[1645200977656,0.5262,2807.9,2806.0,3.74862749]
[1645200977657,0.3,2807.7,2806.0,3.74862749]
[1645200977860,0.3,2807.7,2806.0,0.22722749]
[1645200978057,0.3,2807.7,2805.7,0.0210125]
[1645200978058,1.7832029,2807.5,2805.7,0.0210125]
[1645200978257,0.5951,2807.4,2805.9,0.89161]
[1645200978458,0.5951,2807.4,2805.7,0.0210125]
[1645200978657,1.425,2807.4,2805.7,1.25e-05]
[1645200978962,0.89164,2807.3,2805.7,1.25e-05]
[1645200979260,0.5951,2807.2,2805.7,1.25e-05]
[1645200979605,0.417,2807.1,2805.7,1.25e-05]
[1645200979805,0.1781,2807.0,2805.7,1.25e-05]
[1645200980207,0.417,2807.0,2805.7,1.25e-05]
[1645200981008,1.3085735,2807.0,2805.7,1.25e-05]
[1645200981307,1.3085735,2807.0,2806.2,0.0223957]
[1645200981511,1.008,2807.4,2806.2,0.0223957]
[1645200981710,1.008,2807.4,2806.2,0.03452983]
[1645200981711,0.8299,2807.4,2806.2,0.03452983]
[1645200981906,0.68226869,2807.2,2806.2,0.0223957]
[1645200983207,1.06953,2807.3,2806.2,0.0223957]
[1645200983452,0.8299,2807.4,2806.2,0.0223957]
[1645200983653,0.8299,2807.4,2806.3,0.35576]
[1645200983851,0.8299,2807.4,2806.5,20.81214073]
[1645200984051,0.8299,2807.4,2806.8,20.8]
[1645200984250,0.8299,2807.4,2807.0,1.78203]
[1645200984652,0.8299,2807.4,2807.2,0.89099]
[1645200984854,0.0001,2807.4,2807.2,0.89099]
[1645200986454,0.0001,2807.4,2807.3,20.8]
[1645200986656,0.0001,2807.4,2807.2,0.89099]
[1645200986858,0.0001,2807.4,2806.4,0.2077028]
[1645200987105,0.0001,2807.4,2806.4,0.0296028]
[1645200987505,0.0001,2807.4,2807.0,0.89105]
[1645200987711,0.0001,2807.4,2807.1,20.8]
[1645200987905,0.0001,2807.4,2807.1,21.1]
[1645200988104,0.0001,2807.4,2807.2,1.0]
[1645200988307,0.0001,2807.4,2807.0,0.89105]
[1645200988704,0.0001,2807.4,2807.1,20.8]
[1645200989104,0.3388,2807.5,2807.1,21.69093]
[1645200989304,1.42991495,2808.1,2807.1,21.69093]
[1645200989506,1.42991495,2808.1,2807.7,0.89084]
[1645200989905,1.72991495,2808.1,2807.7,0.89084]
[1645200990105,1.72991495,2808.1,2807.1,20.8]
[1645200990305,1.72991495,2808.1,2807.4,1.78167]
[1645200990705,1.72991495,2808.1,2806.8,1.0]
[1645200990706,1.72991495,2808.1,2806.7,0.5949]
[1645200990959,1.72991495,2808.1,2806.6,0.89119]
[1645200990960,3.6781,2808.0,2806.6,0.89119]
[1645200991148,5.41049,2808.0,2806.4,0.0304028]
[1645200991350,1.0,2807.9,2806.4,0.0008]
[1645200991549,0.90128283,2807.4,2806.4,0.0008]
[1645200991751,0.1781,2807.3,2806.4,0.0008]
[1645200992148,1.7828967,2807.2,2806.4,0.0008]
[1645200992349,1.52448615,2806.9,2806.4,0.0008]
[1645200992548,0.89152,2806.9,2806.4,0.0008]
[1645200992748,0.8915314,2806.8,2806.4,0.0008]
[1645200995001,0.8915314,2806.8,2805.9,0.89139]
[1645200995202,0.8915314,2806.8,2806.5,0.0008]
[1645200995203,1.7831008,2806.7,2806.5,0.0008]
[1645200995401,2.0831008,2806.7,2806.5,0.0008]
[1645200995603,0.1781,2806.6,2806.5,0.0008]
[1645200996303,0.1781,2806.6,2804.9,17.69156]
[1645200996304,0.52275952,2806.4,2804.9,17.69156]
[1645200996501,0.52275952,2806.4,2804.3,8.08031652]
[1645200996502,0.59340151,2805.9,2804.3,7.46052]
[1645200996703,1.7840294,2805.6,2804.4,0.1782]
[1645200996906,1.7840294,2805.6,2804.3,0.1782]
[1645200997107,1.7840294,2805.6,2804.0,2.0585]
[1645200997108,1.7872147,2805.5,2804.0,2.0585]
[1645200997330,7.39198,2805.4,2803.5,4.9983]
[1645200997517,7.39198,2805.4,2803.6,24.09939817]
[1645200997518,0.1782,2805.3,2803.6,24.09939817]
[1645200997708,1.784,2805.4,2803.8,20.8]
[1645200997709,0.89202,2805.4,2803.8,20.8]
[1645200997903,2.6760441,2805.7,2804.0,1.78361]
[1645200998108,2.6756291,2805.4,2803.8,0.1782]
[1645200998354,0.0214,2805.8,2803.8,20.8]
[1645200998355,0.1782,2805.7,2803.8,20.8]
[1645200998555,0.71117568,2805.5,2803.9,20.9782]
[1645200998861,0.71117568,2805.5,2804.0,21.8]
[1645200999055,0.71117568,2805.5,2804.1,0.1782]
[1645200999257,0.71117568,2805.5,2804.1,1.96178]
[1645200999457,0.8917801,2805.4,2804.1,1.96178]
[1645200999657,1.7836901,2805.4,2804.1,1.78358]
[1645201000056,1.7836901,2805.4,2804.4,1.78352]
[1645201000257,1.98362,2805.8,2804.5,0.3]
[1645201000258,0.0214,2805.8,2804.5,0.3]
[1645201000456,0.0214,2805.8,2804.6,0.1782]
[1645201000657,0.0214,2805.8,2804.6,20.9782]
[1645201000857,0.9130522,2805.8,2804.6,1.1782]
[1645201001256,0.02424465,2805.3,2804.6,0.1782]
[1645201001458,0.02424465,2805.3,2804.7,1.78338]
[1645201001660,0.02424465,2805.3,2804.5,1.1782]
[1645201001661,0.02424465,2805.3,2804.5,0.89175]
[1645201001859,0.02424465,2805.3,2804.6,0.48433]
[1645201002126,0.02424465,2805.3,2804.7,0.1782]
[1645201002414,0.02424465,2805.3,2804.8,20.8]
[1645201002613,0.02424465,2805.3,2805.0,1.78322]
[1645201002814,0.02424465,2805.3,2804.8,0.89168]
[1645201003812,0.02424465,2805.3,2804.8,23.77489]
[1645201004016,0.02424465,2805.3,2804.8,22.88326]
[1645201004213,0.02424465,2805.3,2805.1,20.8]
[1645201004415,4.465e-05,2805.3,2805.2,21.8]
[1645201004814,1.43059869,2806.5,2805.2,21.8]
[1645201005015,0.8913677,2806.7,2806.2,0.89132]
[1645201005513,0.8913677,2806.7,2805.9,1.78264]
[1645201006350,0.8913677,2806.7,2805.7,1.7828]
[1645201006553,0.8913677,2806.7,2805.2,2.09720003]
[1645201006554,0.54339223,2806.6,2805.2,2.09720003]
[1645201006850,0.8915078,2806.5,2805.2,0.20565003]
[1645201007049,0.8915078,2806.5,2805.2,1.20565003]
[1645201007248,0.8915078,2806.5,2805.3,20.8]
[1645201007449,0.1781,2807.0,2805.8,0.89137]
[1645201007651,0.1781,2807.2,2805.8,0.89137]
[1645201007853,0.04912748,2807.5,2806.5,0.89124]
[1645201008051,0.8911551,2807.4,2806.5,0.89124]
[1645201008551,0.8911551,2807.4,2805.9,1.78253]
[1645201008552,0.8911551,2807.4,2805.9,0.3]
[1645201008751,1.7829098,2807.1,2805.9,1.3]
[1645201009154,0.8914549,2807.0,2805.9,0.3]
[1645201009352,3.21326016,2807.0,2805.8,23.79986]
[1645201009629,2.32178016,2807.0,2805.8,22.9084]
[1645201010015,2.32178016,2807.0,2805.8,21.3495659]
[1645201010219,2.32178016,2807.0,2805.8,21.1]
[1645201010417,1.43032526,2807.0,2806.5,0.89125]
[1645201010618,0.04912748,2807.5,2806.5,0.89125]
[1645201010817,0.04912748,2807.5,2806.3,20.8]
[1645201011017,0.04912748,2807.5,2806.2,0.48433]
[1645201011215,0.04912748,2807.5,2806.2,22.58433]
[1645201011519,0.04912748,2807.5,2806.3,22.58227]
[1645201011720,1.43030422,2807.7,2806.8,20.8]
[1645201011917,8.03872177,2808.3,2806.6,21.28433]
[1645201012118,5.36542407,2808.3,2806.7,0.1781]
[1645201012316,5.36542407,2808.3,2806.7,1.1781]
[1645201012517,2.59622407,2808.3,2806.6,0.48433]
[1645201012717,2.59622407,2808.3,2806.7,0.89107]
[1645201012718,5.8910364,2808.0,2806.7,0.89107]
[1645201013118,6.9601264,2808.0,2806.7,1.78213]
[1645201013358,6.7820264,2808.0,2806.8,0.3]
[1645201013557,6.7820264,2808.0,2806.8,2.08194]
[1645201013758,6.7820264,2808.0,2806.8,1.78194]
[1645201013958,6.7820264,2808.0,2807.0,21.69101]
[1645201014362,6.7820264,2808.0,2807.0,21.99101]
[1645201014559,6.7320264,2808.0,2806.8,2.78194]
[1645201014758,6.7320264,2808.0,2807.2,0.89104]
[1645201014959,6.7320264,2808.0,2807.0,1.78199]
[1645201015360,6.7320264,2808.0,2807.0,22.58199]
[1645201015564,5.0,2808.0,2807.0,20.8]
[1645201015763,5.0,2808.0,2806.9,0.48433]
[1645201016363,5.0,2808.0,2806.9,0.02969548]
[1645201016761,5.0,2808.0,2806.9,0.92071548]
[1645201016968,5.0,2808.0,2806.9,0.02969548]
[1645201017202,5.84102,2808.0,2806.9,0.02969548]
[1645201017600,5.84102,2808.0,2807.0,0.89107]
[1645201017806,5.84102,2808.0,2806.9,0.92071548]
[1645201018201,5.84102,2808.0,2806.9,2.70280548]
[1645201019001,5.84102,2808.0,2806.9,23.50280548]
[1645201019202,5.0,2808.0,2807.2,1.78188]
[1645201019402,5.0,2808.0,2807.0,20.8]
[1645201019605,5.0,2808.0,2807.2,0.89101]
[1645201020202,0.65697698,2807.9,2807.0,1.78195]